fUST/lending_fUST_20250520
["ID","MTS","AMOUNT","RATE_DAILY","PERIOD"]
[361666933,1747678253332,-430.0,0.0001863,2]
[361666935,1747678253341,-623.36,0.0001863,2]
[361666937,1747678253350,-430.0,0.0001863,2]
[361666939,1747678253359,-430.0,0.0001863,2]
[361666941,1747678253369,-430.0,0.0001863,2]
[361666943,1747678253379,-1455.67,0.0001863,2]
[361666945,1747678253388,-423.24610928,0.0001863,2]
[361666947,1747678253397,-422.04823085,0.0001863,2]
[361666949,1747678253407,-430.0,0.0001863,2]
[361666951,1747678253417,-430.0,0.0001863,2]
[361666953,1747678253426,-299.57859829,0.0001863,2]
[361666955,1747678253435,-430.0,0.0001863,2]
[361666957,1747678253445,-430.0,0.0001863,2]
[361666959,1747678253454,-1638.01,0.0001863,2]
[361666961,1747678253464,-430.0,0.0001863,2]
[361666963,1747678253473,-430.0,0.0001863,2]
[361666965,1747678253483,-542.53,0.0001863,2]
[361666967,1747678253491,-430.0,0.0001863,2]
[361666969,1747678253501,-861.13,0.0001863,2]
[361666971,1747678253510,-430.0,0.0001863,2]
[361666973,1747678253520,-735.09,0.0001863,2]
[361666975,1747678253529,-430.0,0.0001863,2]
[361666977,1747678253539,-430.0,0.0001863,2]
[361666979,1747678253547,-430.0,0.0001863,2]
[361666981,1747678253557,-446.73,0.0001863,2]
[361666983,1747678253566,-430.0,0.0001863,2]
[361666985,1747678253575,-430.0,0.0001863,2]
[361666987,1747678253585,-906.22,0.0001863,2]
[361666988,1747678253596,-425.51139436,0.0001863,2]
[361666990,1747678253605,-430.0,0.0001863,2]
[361666992,1747678253615,-430.0,0.0001863,2]
[361666995,1747678253625,-239.08260564,0.0001863,2]
[361666997,1747678253634,-392.64844444,0.0001863,2]
[361666999,1747678253644,-2900.95,0.0001863,2]
[361667001,1747678253653,-430.0,0.0001863,2]
[361667003,1747678253662,-430.0,0.0001863,2]
[361667004,1747678253671,-430.0,0.0001863,2]
[361667006,1747678253681,-668.98,0.0001863,2]
[361667008,1747678253690,-806.41,0.0001863,2]
[361667010,1747678253700,-430.0,0.0001863,2]
[361667012,1747678253709,-430.0,0.0001863,2]
[361667014,1747678253719,-430.0,0.0001863,2]
[361667017,1747678253729,-305.5149904,0.0001863,2]
[361667019,1747678253739,-430.0,0.0001863,2]
[361667021,1747678253749,-430.0,0.0001863,2]
[361667023,1747678253758,-430.0,0.0001863,2]
[361667025,1747678253768,-430.0,0.0001863,2]
[361667027,1747678253777,-347.32592892,0.0001863,2]
[361667029,1747678253786,-430.0,0.0001863,2]
[361667031,1747678253799,-430.0,0.0001863,2]
[361667033,1747678253809,-476.40254611,0.0001863,2]
[361667035,1747678253818,-853.48,0.0001863,2]
[361667037,1747678253827,-1223.52,0.0001863,2]
[361667039,1747678253838,-430.0,0.0001863,2]
[361667041,1747678253847,-430.0,0.0001863,2]
[361667043,1747678253856,-430.0,0.0001863,2]
[361667045,1747678253866,-996.23,0.0001863,2]
[361667047,1747678253875,-500.0,0.0001863,2]
[361667049,1747678253885,-430.0,0.0001863,2]
[361667051,1747678253895,-199.05244156,0.0001863,2]
[361667053,1747678253904,-430.0,0.0001863,2]
[361667055,1747678253912,-1390.5,0.0001863,2]
[361667057,1747678253922,-430.0,0.0001863,2]
[361667059,1747678253931,-430.0,0.0001863,2]
[361667061,1747678253940,-424.731169,0.0001863,2]
[361667063,1747678253950,-430.0,0.0001863,2]
[361667065,1747678253959,-430.0,0.0001863,2]
[361667067,1747678253968,-430.0,0.0001863,2]
[361667069,1747678253978,-430.0,0.0001863,2]
[361667071,1747678253987,-1409.57,0.0001863,2]
[361667073,1747678253997,-430.0,0.0001863,2]
[361667075,1747678254006,-430.0,0.0001863,2]
[361667077,1747678254018,-2124.49,0.0001863,2]
[361667079,1747678254027,-422.26089974,0.0001863,2]
[361667080,1747678254037,-701.29,0.0001863,2]
[361667083,1747678254047,-501.83,0.0001863,2]
[361667084,1747678254056,-430.0,0.0001863,2]
[361667086,1747678254066,-423.29739073,0.0001863,2]
[361667088,1747678254075,-1561.15,0.0001863,2]
[361667090,1747678254084,-441.96,0.0001863,2]
[361667092,1747678254093,-899.12,0.0001863,2]
[361667094,1747678254103,-1104.97,0.0001863,2]
[361667096,1747678254113,-370.0,0.0001863,2]
[361667098,1747678254122,-475.81052604,0.0001863,2]
[361667100,1747678254131,-430.0,0.0001863,2]
[361667102,1747678254140,-430.0,0.0001863,2]
[361667104,1747678254150,-2522.44,0.0001863,2]
[361667106,1747678254159,-430.0,0.0001863,2]
[361667108,1747678254168,-468.08,0.0001863,2]
[361667110,1747678254177,-2904.2,0.0001863,2]
[361667112,1747678254186,-478.87,0.0001863,2]
[361667114,1747678254195,-430.0,0.0001863,2]
[361667116,1747678254205,-564.58616082,0.0001863,2]
[361667118,1747678254214,-430.0,0.0001863,2]
[361667120,1747678254224,-1119.33,0.0001863,2]
[361667122,1747678254234,-561.73,0.0001863,2]
[361667124,1747678254243,-1123.5,0.0001863,2]
[361667126,1747678254252,-926.76,0.0001863,2]
[361667128,1747678254261,-1799.58,0.0001863,2]
[361667130,1747678254271,-2130.66,0.0001863,2]
[361667132,1747678254280,-430.0,0.0001863,2]
[361667134,1747678254290,-430.0,0.0001863,2]
[361667136,1747678254299,-430.0,0.0001863,2]
[361667137,1747678254308,-510.7,0.0001863,2]
[361667140,1747678254318,-430.0,0.0001863,2]
[361667141,1747678254327,-338.25564254,0.0001863,2]
[361667143,1747678254336,-430.0,0.0001863,2]
[361667145,1747678254346,-430.0,0.0001863,2]
[361667147,1747678254355,-430.0,0.0001863,2]
[361667149,1747678254368,-201.91394495,0.0001863,2]
[361667151,1747678254377,-1184.09,0.0001863,2]
[361667153,1747678254387,-430.0,0.0001863,2]
[361667155,1747678254397,-431.05007588,0.0001863,2]
[361667157,1747678254406,-373.24205605,0.0001863,2]
[361667159,1747678254415,-430.0,0.0001863,2]
[361667161,1747678254425,-426.10378758,0.0001863,2]
[361667163,1747678254435,-430.0,0.0001863,2]
[361667186,1747678254652,-736.8,0.0001863,2]
[361667188,1747678254661,-430.0,0.0001863,2]
[361667190,1747678254670,-430.0,0.0001863,2]
[361667192,1747678254680,-430.0,0.0001863,2]
[361667194,1747678254689,-581.31,0.0001863,2]
[361667196,1747678254699,-472.34305992,0.0001863,2]
[361667198,1747678254709,-430.0,0.0001863,2]
[361667200,1747678254718,-752.45,0.0001863,2]
[361667202,1747678254727,-695.3,0.0001863,2]
[361667204,1747678254736,-716.17,0.0001863,2]
[361667206,1747678254746,-1529.7,0.0001863,2]
[361667208,1747678254755,-430.0,0.0001863,2]
[361667210,1747678254764,-430.0,0.0001863,2]
[361667212,1747678254773,-300.0,0.0001863,2]
[361667214,1747678254782,-548.07268903,0.0001863,2]
[361667216,1747678254792,-500.0,0.00018673,2]
[361667218,1747678254803,-500.0,0.00018673,2]
[361667220,1747678254814,-500.0,0.00018673,2]
[361667222,1747678254824,-500.0,0.00018673,2]
[361667224,1747678254833,-500.0,0.00018673,2]
[361667226,1747678254844,-502.12773463,0.00018673,2]
[361667228,1747678254854,-500.0,0.00018673,2]
[361667230,1747678254864,-500.0,0.00018673,2]
[361667232,1747678254875,-500.0,0.00018673,2]
[361667234,1747678254886,-500.0,0.00018673,2]
[361667235,1747678254897,-500.0,0.00018673,2]
[361667237,1747678254906,-500.0,0.00018673,2]
[361667239,1747678254916,-500.0,0.00018673,2]
[361667241,1747678254926,-500.0,0.00018673,2]
[361667243,1747678254936,-500.0,0.00018673,2]
[361667245,1747678254945,-500.0,0.00018673,2]
[361667247,1747678254956,-503.60720276,0.00018673,2]
[361667249,1747678254965,-500.0,0.00018673,2]
[361667251,1747678254976,-500.0,0.00018673,2]
[361667253,1747678254986,-554.51806817,0.00018673,2]
[361667255,1747678254995,-500.0,0.00018673,2]
[361667257,1747678255005,-500.0,0.00018673,2]
[361667259,1747678255015,-500.0,0.00018673,2]
[361667261,1747678255024,-500.0,0.00018673,2]
[361667263,1747678255034,-223.74544386,0.00018673,2]
[361667265,1747678255044,-253.33973992,0.00018673,2]
[361667267,1747678255052,-500.0,0.00018673,2]
[361667269,1747678255062,-500.0,0.00018673,2]
[361667270,1747678255071,-500.0,0.00018673,2]
[361667272,1747678255081,-500.0,0.00018673,2]
[361667274,1747678255090,-153.9837235,0.00018673,2]
[361667276,1747678255100,-477.4985767,0.00018673,2]
[361667278,1747678255109,-500.0,0.00018673,2]
[361667280,1747678255119,-500.0,0.00018673,2]
[361667282,1747678255129,-151.0,0.000187,2]
[361667284,1747678255138,-151.0,0.000187,2]
[361667286,1747678255148,-151.0,0.000187,2]
[361667288,1747678255157,-1058.98213956,0.00018739,2]
[361667290,1747678255167,-151.0,0.000188,2]
[361667292,1747678255176,-151.0,0.000188,2]
[361667294,1747678255186,-151.0,0.000188,2]
[361667296,1747678255195,-4854.67001534,0.00018831,2]
[361667298,1747678255204,-151.0,0.000189,2]
[361667300,1747678255214,-151.0,0.000189,2]
[361667302,1747678255224,-151.0,0.000189,2]
[361667304,1747678255234,-151.0,0.000189,2]
[361667306,1747678255244,-151.0,0.00018904,2]
[361667308,1747678255253,-151.0,0.00018904,2]
[361667310,1747678255262,-151.0,0.00018904,2]
[361667312,1747678255272,-290.68075,0.00018904,2]
[361667314,1747678255281,-230.704725,0.00018904,2]
[361667316,1747678255291,-230.704725,0.00018904,2]
[361667318,1747678255300,-230.704725,0.00018904,2]
[361667320,1747678255310,-230.704725,0.00018904,2]
[361667322,1747678255319,-218.511128,0.00018904,2]
[361667324,1747678255328,-151.0,0.00018904,2]
[361667326,1747678255337,-151.0,0.00018904,2]
[361667328,1747678255347,-226.524601,0.00018904,2]
[361667330,1747678255357,-226.524601,0.00018904,2]
[361667332,1747678255366,-226.524601,0.00018904,2]
[361667333,1747678255374,-226.524601,0.00018904,2]
[361667334,1747678255384,-151.0,0.00018904,2]
[361667335,1747678255393,-151.0,0.00018904,2]
[361667336,1747678255402,-151.0,0.00018904,2]
[361667337,1747678255411,-151.0,0.00018904,2]
[361667338,1747678255421,-779.21399,0.00018904,2]
[361667339,1747678255430,-779.21399,0.00018904,2]
[361667340,1747678255438,-779.21399,0.00018904,2]
[361667341,1747678255447,-779.21399,0.00018904,2]
[361667342,1747678255456,-151.0,0.00018904,2]
[361667343,1747678255465,-151.0,0.00018904,2]
[361667344,1747678255475,-442.52566844,0.00018904,2]
[361667345,1747678255484,-430.0,0.00018904,2]
[361667346,1747678255493,-400.0,0.00018904,2]
[361667347,1747678255502,-430.0,0.00018904,2]
[361667348,1747678255511,-400.0,0.00018904,2]
[361667349,1747678255521,-430.0,0.00018904,2]
[361667350,1747678255530,-245.199336,0.00018904,2]
[361667351,1747678255540,-245.199336,0.00018904,2]
[361667352,1747678255549,-400.0,0.00018904,2]
[361667353,1747678255558,-430.0,0.00018904,2]
[361667354,1747678255567,-245.199336,0.00018904,2]
[361667355,1747678255576,-245.199336,0.00018904,2]
[361667356,1747678255586,-400.0,0.00018904,2]
[361667357,1747678255595,-400.0,0.00018904,2]
[361667358,1747678255604,-163.767764,0.00018904,2]
[361667359,1747678255613,-342.30224266,0.00018904,2]
[361667360,1747678255622,-163.767764,0.00018904,2]
[361667361,1747678255631,-163.767764,0.00018904,2]
[361667362,1747678255641,-395.06921828,0.00018904,2]
[361667363,1747678255650,-163.767764,0.00018904,2]
[361667364,1747678255659,-163.767764,0.00018904,2]
[361667365,1747678255668,-163.767758,0.00018904,2]
[361667366,1747678255677,-762.608768,0.00018904,2]
[361667367,1747678255686,-762.608768,0.00018904,2]
[361667368,1747678255695,-762.608768,0.00018904,2]
[361667369,1747678255704,-430.0,0.00018904,2]
[361667370,1747678255713,-370.71280183,0.00018904,2]
[361667371,1747678255723,-151.0,0.00018904,2]
[361667372,1747678255733,-151.0,0.00018904,2]
[361667373,1747678255742,-151.0,0.00018904,2]
[361667374,1747678255750,-430.0,0.00018904,2]
[361667375,1747678255759,-499.51,0.00018904,2]
[361667376,1747678255768,-541.50728518,0.00018904,2]
[361667377,1747678255777,-430.0,0.00018904,2]
[361667378,1747678255786,-151.0,0.00018904,2]
[361667379,1747678255796,-151.0,0.00018904,2]
[361667380,1747678255917,-265.380183,0.00018904,2]
[361667381,1747678255926,-430.0,0.00018904,2]
[361667382,1747678255936,-430.0,0.00018904,2]
[361667383,1747678255945,-412.43935536,0.00018904,2]
[361667384,1747678255954,-430.0,0.00018904,2]
[361667385,1747678255963,-430.0,0.00018904,2]
[361667386,1747678255971,-366.93866862,0.00018904,2]
[361667387,1747678255980,-366.74372174,0.00018904,2]
[361667388,1747678255989,-572.22091474,0.00018904,2]
[361667389,1747678255998,-422.12538039,0.00018904,2]
[361667390,1747678256007,-430.0,0.00018904,2]
[361667391,1747678256016,-430.0,0.00018904,2]
[361667392,1747678256025,-430.0,0.00018904,2]
[361667393,1747678256033,-364.24945904,0.00018904,2]
[361667394,1747678256043,-686.82,0.00018904,2]
[361667395,1747678256052,-430.0,0.00018904,2]
[361667396,1747678256061,-430.0,0.00018904,2]
[361667397,1747678256070,-430.0,0.00018904,2]
[361667398,1747678256078,-410.0,0.00018904,2]
[361667399,1747678256087,-442.88201686,0.00018904,2]
[361667400,1747678256096,-318.16615761,0.00018904,2]
[361667401,1747678256106,-339.873522,0.00018904,2]
[361667402,1747678256115,-339.873522,0.00018904,2]
[361667403,1747678256125,-339.873522,0.00018904,2]
[361667404,1747678256134,-430.0,0.00018904,2]
[361667405,1747678256143,-410.0,0.00018904,2]
[361667406,1747678256152,-339.873522,0.00018904,2]
[361667407,1747678256161,-339.873522,0.00018904,2]
[361667408,1747678256171,-339.873522,0.00018904,2]
[361667409,1747678256180,-430.0,0.00018904,2]
[361667410,1747678256191,-416.15881375,0.00018904,2]
[361667411,1747678256200,-290.0,0.00018904,2]
[361667412,1747678256209,-430.0,0.00018904,2]
[361667413,1747678256219,-430.0,0.00018904,2]
[361667415,1747678256228,-430.0,0.00018904,2]
[361667416,1747678256237,-430.0,0.00018904,2]
[361667418,1747678256247,-776.59,0.00018904,2]
[361667420,1747678256256,-430.0,0.00018904,2]
[361667422,1747678256266,-405.48983233,0.00018904,2]
[361667424,1747678256275,-430.0,0.00018904,2]
[361667426,1747678256284,-430.0,0.00018904,2]
[361667428,1747678256294,-430.0,0.00018904,2]
[361667430,1747678256303,-681.39,0.00018904,2]
[361667432,1747678256313,-430.0,0.00018904,2]
[361667434,1747678256324,-430.0,0.00018904,2]
[361667437,1747678256334,-430.0,0.00018904,2]
[361667439,1747678256344,-430.0,0.00018904,2]
[361667441,1747678256354,-430.0,0.00018904,2]
[361667443,1747678256364,-220.94196299,0.00018904,2]
[361667445,1747678256373,-516.86,0.00018904,2]
[361667447,1747678256383,-629.1,0.00018904,2]
[361667449,1747678256392,-350.26613368,0.00018904,2]
[361667451,1747678256401,-430.0,0.00018904,2]
[361667453,1747678256411,-430.0,0.00018904,2]
[361667455,1747678256420,-294.08848443,0.00018904,2]
[361667457,1747678256431,-430.0,0.00018904,2]
[361667459,1747678256440,-1132.44,0.00018904,2]
[361667461,1747678256449,-430.0,0.00018904,2]
[361667463,1747678256458,-430.0,0.00018904,2]
[361667465,1747678256468,-852.15,0.00018904,2]
[361667467,1747678256477,-430.0,0.00018904,2]
[361667469,1747678256486,-430.0,0.00018904,2]
[361667471,1747678256495,-430.0,0.00018904,2]
[361667472,1747678256505,-554.8385239,0.00018904,2]
[361667474,1747678256514,-358.25576981,0.00018904,2]
[361667476,1747678256523,-605.64,0.00018904,2]
[361667478,1747678256533,-875.09,0.00018904,2]
[361667480,1747678256542,-430.0,0.00018904,2]
[361667482,1747678256552,-430.0,0.00018904,2]
[361667484,1747678256561,-314.10289117,0.00018904,2]
[361667486,1747678256571,-430.0,0.00018904,2]
[361667488,1747678256580,-358.0,0.00018904,2]
[361667490,1747678256589,-430.0,0.00018904,2]
[361667492,1747678256598,-430.0,0.00018904,2]
[361667494,1747678256607,-380.0,0.00018904,2]
[361667496,1747678256617,-430.0,0.00018904,2]
[361667498,1747678256626,-430.0,0.00018904,2]
[361667500,1747678256635,-430.0,0.00018904,2]
[361667502,1747678256645,-298.64797749,0.00018904,2]
[361667504,1747678256655,-430.0,0.00018904,2]
[361667506,1747678256664,-430.0,0.00018904,2]
[361667508,1747678256674,-545.76,0.00018904,2]
[361667510,1747678256683,-437.63884363,0.00018904,2]
[361667512,1747678256692,-268.79385147,0.00018904,2]
[361667514,1747678256701,-430.0,0.00018904,2]
[361667516,1747678256710,-430.0,0.00018904,2]
[361667518,1747678256720,-154.59060824,0.00018904,2]
[361667520,1747678256730,-430.0,0.00018904,2]
[361667522,1747678256739,-430.0,0.00018904,2]
[361667524,1747678256748,-430.0,0.00018904,2]
[361667526,1747678256757,-430.0,0.00018904,2]
[361667528,1747678256767,-430.0,0.00018904,2]
[361667530,1747678256776,-408.44003442,0.00018904,2]
[361667532,1747678256785,-430.0,0.00018904,2]
[361667534,1747678256795,-671.94,0.00018904,2]
[361667536,1747678256807,-430.0,0.00018904,2]
[361667538,1747678256817,-394.05846507,0.00018904,2]
[361667540,1747678256826,-155.11529607,0.00018904,2]
[361667542,1747678256836,-701.04,0.00018904,2]
[361667544,1747678256846,-430.0,0.00018904,2]
[361667546,1747678256855,-430.0,0.00018904,2]
[361667548,1747678256863,-430.0,0.00018904,2]
[361667550,1747678256872,-430.0,0.00018904,2]
[361667552,1747678256883,-407.12993596,0.00018904,2]
[361667554,1747678256892,-430.0,0.00018904,2]
[361667556,1747678256901,-489.96,0.00018904,2]
[361667558,1747678256910,-575.34,0.00018904,2]
[361667560,1747678256919,-191.85603091,0.00018904,2]
[361667562,1747678256928,-430.0,0.00018904,2]
[361667564,1747678256938,-433.77,0.00018904,2]
[361667566,1747678256947,-430.0,0.00018904,2]
[361667568,1747678256956,-430.0,0.00018904,2]
[361667570,1747678256965,-430.0,0.00018904,2]
[361667572,1747678256975,-353.22333873,0.00018904,2]
[361667574,1747678256984,-545.3388884,0.00018904,2]
[361667576,1747678256994,-430.0,0.00018904,2]
[361667578,1747678257004,-252.24980059,0.00018904,2]
[361667580,1747678257015,-430.0,0.00018904,2]
[361667582,1747678257024,-280.15131787,0.00018904,2]
[361667584,1747678257033,-430.0,0.00018904,2]
[361667586,1747678257042,-430.0,0.00018904,2]
[361667588,1747678257051,-430.0,0.00018904,2]
[361667590,1747678257060,-430.0,0.00018904,2]
[361667591,1747678257069,-430.0,0.00018904,2]
[361667593,1747678257078,-330.0,0.00018904,2]
[361667595,1747678257088,-430.0,0.00018904,2]
[361667598,1747678257098,-439.55,0.00018904,2]
[361667600,1747678257107,-430.0,0.00018904,2]
[361667602,1747678257117,-430.0,0.00018904,2]
[361667604,1747678257126,-430.0,0.00018904,2]
[361667605,1747678257135,-451.43,0.00018904,2]
[361667607,1747678257144,-169.65871783,0.00018904,2]
[361667609,1747678257153,-430.0,0.00018904,2]
[361667612,1747678257163,-745.65,0.00018904,2]
[361667613,1747678257173,-430.0,0.00018904,2]
[361667616,1747678257182,-430.0,0.00018904,2]
[361667618,1747678257192,-430.0,0.00018904,2]
[361667619,1747678257202,-342.78255774,0.00018904,2]
[361667622,1747678257213,-430.0,0.00018904,2]
[361667623,1747678257223,-430.0,0.00018904,2]
[361667625,1747678257233,-504.14291373,0.00018904,2]
[361667627,1747678257243,-430.0,0.00018904,2]
[361667629,1747678257252,-430.0,0.00018904,2]
[361667631,1747678257261,-430.0,0.00018904,2]
[361667633,1747678257270,-430.0,0.00018904,2]
[361667635,1747678257279,-430.0,0.00018904,2]
[361667637,1747678257288,-262.88174994,0.00018904,2]
[361667639,1747678257297,-554.29160352,0.00018904,2]
[361667641,1747678257307,-430.0,0.00018904,2]
[361667643,1747678257315,-430.0,0.00018904,2]
[361667645,1747678257324,-430.0,0.00018904,2]
[361667647,1747678257333,-438.7,0.00018904,2]
[361667649,1747678257343,-434.58,0.00018904,2]
[361667651,1747678257352,-430.0,0.00018904,2]
[361667653,1747678257361,-280.0,0.00018904,2]
[361667655,1747678257370,-430.0,0.00018904,2]
[361667657,1747678257379,-430.0,0.00018904,2]
[361667659,1747678257388,-430.0,0.00018904,2]
[361667661,1747678257397,-430.0,0.00018904,2]
[361667663,1747678257406,-430.0,0.00018904,2]
[361667665,1747678257415,-430.0,0.00018904,2]
[361667667,1747678257423,-1375.68,0.00018904,2]
[361667669,1747678257433,-430.0,0.00018904,2]
[361667671,1747678257442,-430.0,0.00018904,2]
[361667673,1747678257451,-430.0,0.00018904,2]
[361667675,1747678257460,-430.0,0.00018904,2]
[361667678,1747678257472,-551.59,0.00018904,2]
[361667680,1747678257481,-430.0,0.00018904,2]
[361667682,1747678257490,-430.0,0.00018904,2]
[361667684,1747678257499,-430.0,0.00018904,2]
[361667685,1747678257509,-430.0,0.00018904,2]
[361667687,1747678257518,-430.0,0.00018904,2]
[361667689,1747678257527,-430.0,0.00018904,2]
[361667691,1747678257538,-430.0,0.00018904,2]
[361667694,1747678257548,-350.8815186,0.00018904,2]
[361667695,1747678257557,-430.0,0.00018904,2]
[361667697,1747678257566,-530.62,0.00018904,2]
[361667699,1747678257576,-360.39341036,0.00018904,2]
[361667701,1747678257585,-343.7742603,0.00018904,2]
[361667704,1747678257595,-359.60603627,0.00018904,2]
[361667706,1747678257604,-359.91700352,0.00018904,2]
[361667708,1747678257614,-430.0,0.00018904,2]
[361667710,1747678257624,-430.0,0.00018904,2]
[361667712,1747678257634,-2065.45,0.00018904,2]
[361667714,1747678257643,-430.0,0.00018904,2]
[361667716,1747678257653,-430.0,0.00018904,2]
[361667718,1747678257663,-430.0,0.00018904,2]
[361667720,1747678257672,-430.0,0.00018904,2]
[361667722,1747678257681,-430.0,0.00018904,2]
[361667724,1747678257691,-430.0,0.00018904,2]
[361667726,1747678257700,-430.0,0.00018904,2]
[361667728,1747678257709,-294.49944318,0.00018904,2]
[361667730,1747678257717,-430.0,0.00018904,2]
[361667732,1747678257728,-430.0,0.00018904,2]
[361667733,1747678257737,-430.0,0.00018904,2]
[361667736,1747678257747,-422.10915316,0.00018904,2]
[361667738,1747678257756,-2491.97,0.00018904,2]
[361667740,1747678257765,-864.52,0.00018904,2]
[361667742,1747678257774,-430.0,0.00018904,2]
[361667744,1747678257783,-637.32,0.00018904,2]
[361667746,1747678257792,-330.0,0.00018904,2]
[361667748,1747678257804,-430.0,0.00018904,2]
[361667750,1747678257813,-430.0,0.00018904,2]
[361667752,1747678257823,-1871.71,0.00018904,2]
[361667754,1747678257832,-344.24156113,0.00018904,2]
[361667756,1747678257842,-430.0,0.00018904,2]
[361667758,1747678257851,-430.0,0.00018904,2]
[361667760,1747678257859,-440.0,0.00018904,2]
[361667762,1747678257868,-342.67753117,0.00018904,2]
[361667764,1747678257879,-4063.35,0.00018904,2]
[361667766,1747678257888,-430.0,0.00018904,2]
[361667768,1747678257897,-430.0,0.00018904,2]
[361667769,1747678257906,-685.18,0.00018904,2]
[361667771,1747678257915,-380.92719641,0.00018904,2]
[361667774,1747678257925,-430.0,0.00018904,2]
[361667776,1747678257934,-283.33790363,0.00018904,2]
[361667778,1747678257943,-817.13,0.00018904,2]
[361667780,1747678257954,-430.0,0.00018904,2]
[361667782,1747678257963,-414.78280144,0.00018904,2]
[361667784,1747678257973,-430.0,0.00018904,2]
[361667786,1747678257982,-5294.37,0.00018904,2]
[361667788,1747678257991,-534.03,0.00018904,2]
[361667790,1747678258000,-465.48013651,0.00018904,2]
[361667791,1747678258009,-430.0,0.00018904,2]
[361667793,1747678258019,-430.0,0.00018904,2]
[361667794,1747678258027,-452.72055257,0.00018904,2]
[361667795,1747678258036,-566.9,0.00018904,2]
[361667796,1747678258046,-430.0,0.00018904,2]
[361667797,1747678258055,-2065.21,0.00018904,2]
[361667798,1747678258064,-537.77,0.00018904,2]
[361667799,1747678258073,-430.0,0.00018904,2]
[361667800,1747678258082,-430.0,0.00018904,2]
[361667801,1747678258091,-430.0,0.00018904,2]
[361667802,1747678258100,-4975.86,0.00018904,2]
[361667803,1747678258109,-430.0,0.00018904,2]
[361667804,1747678258119,-835.39,0.00018904,2]
[361667805,1747678258127,-430.0,0.00018904,2]
[361667806,1747678258136,-1400.2,0.00018904,2]
[361667807,1747678258145,-1314.62,0.00018904,2]
[361667808,1747678258155,-1072.15,0.00018904,2]
[361667809,1747678258163,-1095.34,0.00018904,2]
[361667810,1747678258172,-356.9949614,0.00018904,2]
[361667811,1747678258182,-430.0,0.00018904,2]
[361667812,1747678258191,-1638.88,0.00018904,2]
[361667813,1747678258200,-430.0,0.00018904,2]
[361667814,1747678258210,-430.0,0.00018904,2]
[361667815,1747678258219,-1009.6,0.00018904,2]
[361667816,1747678258228,-430.0,0.00018904,2]
[361667817,1747678258237,-656.69,0.00018904,2]
[361667818,1747678258247,-7287.93,0.00018904,2]
[361667819,1747678258256,-430.0,0.00018904,2]
[361667820,1747678258265,-1675.27,0.00018904,2]
[361667821,1747678258274,-430.0,0.00018904,2]
[361667822,1747678258284,-582.76,0.00018904,2]
[361667823,1747678258293,-4789.9,0.00018904,2]
[361667824,1747678258302,-430.0,0.00018904,2]
[361667825,1747678258311,-430.0,0.00018904,2]
[361667826,1747678258320,-430.0,0.00018904,2]
[361667827,1747678258329,-1475.08,0.00018904,2]
[361667828,1747678258338,-430.0,0.00018904,2]
[361667829,1747678258347,-3802.2,0.00018904,2]